bitfinex/quotes_ETHUSD_20251009
["timestamp","ask_amount","ask_price","bid_price","bid_amount"]
[1759978465669,8.782,4417.6,4417.5,6.39158443]
[1759978466411,8.782,4417.6,4417.5,6.01632437]
[1759978466716,8.8831,4417.6,4417.5,3.75260055]
[1759978467599,8.8831,4417.6,4417.5,6.01632437]
[1759978467988,8.8831,4417.6,4417.5,3.75260055]
[1759978468500,10.8031,4417.6,4417.5,3.75260055]
[1759978469380,8.8831,4417.6,4417.5,3.75260055]
[1759978470897,10.8031,4417.6,4417.5,3.75260055]
[1759978471293,4.3761,4417.6,4417.5,3.75260055]
[1759978471602,10.8041,4417.6,4417.5,3.75260055]
[1759978472105,8.8841,4417.6,4417.5,3.75260055]
[1759978472819,13.28425634,4417.6,4417.5,3.75260055]
[1759978473703,15.54792892,4417.6,4417.5,3.75260055]
[1759978473941,17.46792892,4417.6,4417.5,3.75260055]
[1759978474113,17.94449814,4417.6,4417.5,3.75260055]
[1759978474300,13.5443418,4417.6,4417.5,3.75260055]
[1759978474632,11.28066922,4417.6,4417.5,3.75260055]
[1759978475133,17.94449814,4417.6,4417.5,3.75260055]
[1759978475301,15.68082556,4417.6,4417.5,3.75260055]
[1759978475909,2.49766922,4417.6,4417.5,3.75260055]
[1759978476109,0.79306113,4419.0,4417.6,0.59764344]
[1759978476400,0.787,4419.0,4418.9,2.26300663]
[1759978476752,0.787,4419.0,4418.7,1.25692215]
[1759978476899,10.209,4419.0,4417.5,4.12886061]
[1759978477234,10.209,4419.0,4418.3,2.26327738]
[1759978477436,10.209,4419.0,4418.4,2.2632285]
[1759978477631,10.209,4419.0,4418.2,2.26336158]
[1759978477801,12.47196357,4419.0,4417.8,2.26356815]
[1759978478148,2.26302009,4418.9,4417.8,2.26356073]
[1759978478313,6.429,4418.8,4417.6,0.81113847]
[1759978478500,2.26316027,4418.6,4417.5,3.75360055]
[1759978478838,6.428,4418.5,4417.5,6.0173229]
[1759978479009,2.355,4418.4,4417.5,3.75360055]
[1759978479207,6.428,4418.3,4417.5,6.01731607]
[1759978479418,6.428,4418.3,4417.6,2.26366599]
[1759978479733,6.428,4418.3,4417.5,6.01731334]
[1759978480234,6.428,4418.3,4417.5,3.75360055]
[1759978481007,6.428,4418.3,4417.5,6.01727912]
[1759978481409,6.428,4418.3,4417.5,3.75360055]
[1759978481936,6.428,4418.3,4417.5,6.01731168]
[1759978482139,6.428,4418.3,4417.6,2.26363076]
[1759978482508,6.428,4418.3,4417.5,6.01731517]
[1759978482710,6.428,4418.3,4417.5,6.01732211]
[1759978482946,6.428,4418.3,4417.5,3.75360055]
[1759978483329,8.69132266,4418.3,4417.5,3.75360055]
[1759978483844,8.69132897,4418.3,4417.5,3.75360055]
[1759978484020,6.428,4418.3,4417.5,3.75360055]
[1759978484745,2.26337036,4418.2,4417.5,3.75360055]
[1759978484913,8.69131725,4418.3,4417.5,3.75360055]
[1759978485108,2.26340582,4418.2,4417.5,3.75360055]
[1759978485308,6.428,4418.3,4417.5,3.75360055]
[1759978485509,2.26336517,4418.2,4417.5,3.75360055]
[1759978486104,6.428,4418.3,4417.5,3.75360055]
[1759978486105,8.69132337,4418.3,4417.5,3.75360055]
[1759978486307,2.26343067,4418.1,4417.5,3.75360055]
[1759978486553,6.428,4418.0,4417.5,3.75360055]
[1759978486753,8.69147088,4418.0,4417.5,3.75360055]
[1759978486917,6.428,4418.0,4417.5,3.75360055]
[1759978488031,0.47834976,4417.9,4417.5,3.75360055]
[1759978489020,14.559,4417.8,4417.5,3.75360055]
[1759978489346,8.783,4417.7,4417.6,2.26362987]
[1759978490041,1.1895917,4419.1,4417.5,3.75360055]
[1759978490042,0.79306113,4418.9,4417.5,3.75360055]
[1759978490213,3.632,4418.5,4418.1,2.26340578]
[1759978490545,3.632,4418.5,4418.0,2.26346763]
[1759978490546,0.1128,4418.1,4418.0,2.26346763]
[1759978490747,6.428,4418.1,4418.0,2.26346763]
[1759978490949,6.428,4418.1,4418.0,2.71616674]
[1759978491316,6.428,4418.1,4417.5,3.75360055]
[1759978491841,8.69145852,4418.1,4417.5,3.75360055]
[1759978492044,14.39907582,4418.9,4417.5,3.75360055]
[1759978492045,0.79306113,4418.9,4417.5,3.75360055]
[1759978492248,6.906284,4419.7,4417.7,13.55057839]
[1759978492414,0.702,4419.6,4417.8,0.4355]
[1759978492616,0.702,4419.6,4418.0,2.26346763]
[1759978492929,0.702,4419.6,4418.6,2.26315869]
[1759978493125,2.96466473,4419.6,4418.6,2.26315869]
[1759978493326,0.702,4419.6,4418.5,2.2632015]
[1759978493551,0.702,4419.6,4418.5,2.26318058]
[1759978493747,0.702,4419.6,4417.6,0.9]
[1759978493969,2.26290905,4419.1,4417.7,0.46536006]
[1759978494248,2.26301494,4418.9,4418.1,2.26338918]
[1759978494446,4.285,4418.8,4418.1,2.26338918]
[1759978494746,4.285,4418.8,4418.0,2.26346618]
[1759978494747,6.5480708,4418.8,4418.0,2.26346618]
[1759978495249,4.285,4418.8,4418.1,2.26340833]
[1759978495546,4.285,4418.8,4418.2,2.26336139]
[1759978495746,4.285,4418.8,4417.7,0.46536006]
[1759978495949,4.285,4418.8,4418.2,2.2633551]
[1759978496355,4.285,4418.8,4418.3,2.26327561]
[1759978496855,4.285,4418.8,4417.8,0.42289606]
[1759978497055,4.285,4418.8,4418.7,2.26310905]
[1759978497428,4.285,4418.8,4418.3,2.26326885]
[1759978497625,2.26270182,4419.5,4417.9,2.26351886]
[1759978497827,1.92,4419.3,4418.0,0.26864149]
[1759978498024,6.427,4419.2,4418.0,0.26864149]
[1759978498246,2.355,4419.1,4418.0,2.53209824]
[1759978498453,0.002,4419.6,4418.1,0.70593416]
[1759978498655,6.427,4419.5,4419.2,2.26280306]
[1759978498854,6.427,4419.5,4418.4,2.26322347]
[1759978498855,6.40379664,4419.5,4419.1,2.2628576]
[1759978499022,6.40379664,4419.5,4418.8,2.26305523]
[1759978499220,6.40379664,4419.5,4418.5,2.26321149]
[1759978499221,6.40379664,4419.5,4418.7,2.26307028]
[1759978499455,6.40379664,4419.5,4418.9,2.2630066]
[1759978499666,6.40379664,4419.5,4419.1,2.26285661]
[1759978499903,6.40379664,4419.5,4419.2,2.26283966]
[1759978500163,2.357,4419.6,4418.7,4.39603361]
[1759978500164,0.002,4419.6,4419.0,4.39603361]
[1759978500365,2.357,4419.6,4419.5,2.2626994]
[1759978500577,2.357,4419.6,4418.2,2.26336517]
[1759978500578,2.57,4419.6,4418.2,2.26336517]
[1759978500733,2.57,4419.6,4418.1,1.1313]
[1759978500734,2.57,4419.6,4418.7,4.39603361]
[1759978501241,2.57,4419.6,4419.1,2.26285508]
[1759978501446,0.1128,4419.2,4419.1,2.26285508]
[1759978502068,0.1128,4419.2,4418.9,2.26299599]
[1759978502270,6.427,4419.1,4418.9,2.26299599]
[1759978502557,6.427,4419.1,4418.7,4.39603361]
[1759978502762,6.427,4419.1,4419.0,2.26295541]
[1759978503131,6.427,4419.1,4418.5,4.39603361]
[1759978503132,6.427,4419.1,4418.8,2.26302102]
[1759978503457,0.1128,4419.0,4418.9,2.26300663]
[1759978503858,0.1128,4419.0,4418.5,4.39603361]
[1759978503859,0.1128,4419.0,4418.2,0.1128]
[1759978504040,0.1128,4418.4,4418.2,4.39603361]
[1759978504237,0.1128,4418.4,4418.3,3.17755043]
[1759978504441,5.63,4418.4,4418.3,3.17755043]
[1759978505541,0.1128,4418.9,4418.8,2.26305784]
[1759978505734,6.5388,4418.9,4418.8,2.26305784]
[1759978505925,6.426,4418.9,4418.8,3.39626391]
[1759978506125,6.426,4418.9,4418.8,2.94426391]
[1759978506361,6.426,4418.9,4418.8,2.26305784]
[1759978506564,6.5388,4418.9,4418.5,2.26316192]
[1759978506870,6.5388,4418.9,4418.2,0.1128]
[1759978507359,6.5388,4418.9,4417.8,0.42289606]
[1759978507360,6.426,4418.9,4418.0,4.39603361]
[1759978507570,0.1128,4418.4,4418.3,2.26331394]
[1759978507769,6.5388,4418.4,4418.3,2.26331394]
[1759978508164,6.5388,4418.4,4418.1,2.26337139]
[1759978508354,6.426,4418.4,4418.1,2.26337139]
[1759978508876,0.1128,4418.1,4417.8,0.001]
[1759978509279,2.26339495,4418.2,4417.8,0.001]
[1759978509444,4.18339495,4418.2,4417.8,0.001]
[1759978509978,1.92,4418.2,4417.8,0.001]
[1759978510178,4.18338675,4418.2,4417.8,0.001]
[1759978510755,1.92,4418.2,4417.8,0.001]
[1759978510966,9.42,4418.3,4417.8,0.001]
[1759978511214,2.26336925,4418.2,4417.8,0.001]
[1759978511479,1.92,4418.2,4417.8,0.001]
[1759978511682,2.26351886,4417.9,4417.8,0.001]
[1759978511874,8.346,4417.9,4417.8,0.001]
[1759978512384,10.60951886,4417.9,4417.8,0.001]
[1759978513790,8.346,4417.9,4417.8,0.001]
[1759978514197,10.60951886,4417.9,4417.8,0.001]
[1759978515104,8.346,4417.9,4417.8,0.001]
[1759978515409,1.92,4417.9,4417.8,0.001]
[1759978515705,20.123,4417.9,4417.8,0.001]
[1759978516007,18.203,4417.9,4417.8,0.001]
[1759978516980,15.848,4417.9,4417.8,0.001]
[1759978517177,18.203,4417.9,4417.8,0.001]
[1759978517381,2.26332607,4418.3,4417.8,0.001]
[1759978517591,1.92,4418.1,4417.8,0.001]
[1759978517793,2.355,4418.0,4417.8,0.001]
[1759978517980,6.427,4417.9,4417.8,0.001]
[1759978518181,9.423,4419.2,4418.0,2.26345723]
[1759978518419,9.423,4418.1,4418.0,2.26345723]
[1759978518622,0.002,4419.6,4418.0,2.71625542]
[1759978518913,2.355,4418.3,4418.2,2.26336517]
[1759978519097,2.932,4418.3,4418.2,2.26336517]
[1759978519424,2.932,4418.3,4418.0,0.45280175]
[1759978519605,2.932,4418.3,4417.8,0.001]
[1759978519926,2.932,4418.3,4418.2,2.26336517]
[1759978520423,0.61245893,4419.0,4418.3,2.26327961]
[1759978520607,2.355,4418.9,4418.1,0.02263416]
[1759978520805,6.655,4418.9,4418.6,2.26312162]
[1759978520975,6.655,4418.9,4418.5,2.26319759]
[1759978521408,6.655,4418.9,4417.9,2.26351586]
[1759978521709,6.655,4418.9,4418.6,2.26313729]
[1759978522011,6.655,4418.9,4418.5,2.26319253]
[1759978522207,6.655,4418.9,4418.0,2.26341975]
[1759978522409,6.655,4418.9,4417.8,0.001]
[1759978522625,6.655,4418.9,4418.3,2.26331254]
[1759978522822,6.655,4418.9,4417.8,0.001]
[1759978523223,2.2632581,4418.5,4417.8,0.001]
[1759978523523,6.426,4418.4,4417.8,0.001]
[1759978523725,2.26305784,4418.8,4417.9,2.26351886]
[1759978523924,11.777,4418.3,4417.8,0.001]
[1759978524095,6.091,4418.2,4417.8,0.001]
[1759978524295,6.091,4418.2,4417.8,2.2645639]
[1759978525005,6.091,4418.2,4417.8,0.001]
[1759978525199,6.091,4418.2,4417.9,2.26347538]
[1759978525400,6.091,4418.2,4417.8,0.001]
[1759978525616,6.091,4418.2,4417.8,2.26456232]
[1759978525793,6.091,4418.2,4417.9,2.26351345]
[1759978525996,6.091,4418.2,4417.8,0.001]
[1759978526824,2.2634164,4418.1,4417.8,0.001]
[1759978527409,6.091,4418.2,4417.8,0.001]
[1759978527637,2.26342182,4418.1,4417.8,0.001]
[1759978527996,2.26347714,4418.0,4417.8,0.001]
[1759978528926,8.35438413,4418.2,4417.8,0.001]
[1759978529101,2.2634164,4418.1,4417.8,0.001]
[1759978529294,6.091,4418.2,4417.8,0.001]
[1759978529629,0.099,4418.0,4417.8,0.001]
[1759978529838,6.426,4417.9,4417.8,0.001]
[1759978530225,8.78851886,4417.9,4417.8,0.001]
[1759978530544,6.525,4417.9,4417.8,0.001]
[1759978530929,0.099,4417.9,4417.8,0.001]
[1759978531139,20.56551886,4417.9,4417.8,0.001]
[1759978532137,22.48551886,4417.9,4417.8,0.001]
[1759978533442,20.222,4417.9,4417.8,0.001]
[1759978533641,22.48551886,4417.9,4417.8,0.001]
[1759978537623,22.96300337,4417.9,4417.8,0.001]
[1759978537934,22.48551886,4417.9,4417.8,0.001]
[1759978538134,22.96300368,4417.9,4417.8,0.001]
[1759978539431,22.9630257,4417.9,4417.8,0.001]
[1759978539619,4.28251886,4417.9,4417.8,0.001]
[1759978539823,22.96602192,4417.9,4417.8,0.001]
[1759978540552,22.48851886,4417.9,4417.8,0.001]
[1759978541844,18.305,4417.9,4417.8,0.001]
[1759978542041,20.56851886,4417.9,4417.8,0.001]
[1759978542381,1.92,4417.9,4417.8,0.001]
[1759978542580,8.782,4417.9,4417.8,0.001]
[1759978542778,8.881,4417.9,4417.8,0.001]
[1759978544034,11.14451886,4417.9,4417.8,0.001]
[1759978545067,0.099,4417.9,4417.8,0.001]
[1759978545472,20.56751886,4417.9,4417.8,0.001]
[1759978545642,22.48751886,4417.9,4417.8,0.001]
[1759978548043,22.96484465,4417.9,4417.8,0.001]
[1759978548965,22.48751886,4417.9,4417.8,0.001]
[1759978549176,22.96485629,4417.9,4417.8,0.001]
[1759978549839,20.60885629,4417.9,4417.8,0.001]
[1759978550044,11.18485629,4417.9,4417.8,0.001]
[1759978550276,22.96485629,4417.9,4417.8,0.001]
[1759978552476,0.47733743,4417.9,4417.8,0.001]
[1759978552781,14.555,4417.9,4417.8,0.001]
[1759978552986,18.205,4417.9,4417.8,0.001]
[1759978553142,18.205,4417.9,4417.8,2.63992811]
[1759978553143,8.781,4417.9,4417.8,2.63992811]
[1759978553349,8.781,4417.9,4417.8,0.37636005]
[1759978554084,8.781,4417.9,4417.8,0.001]
[1759978554449,8.781,4417.9,4417.8,2.2645701]
[1759978554871,0.099,4418.6,4418.0,2.26342287]
[1759978555146,0.099,4418.6,4417.8,2.2645701]
[1759978555147,8.671,4418.5,4418.4,2.26326271]
[1759978555369,8.671,4418.5,4418.4,3.15878874]
[1759978556086,8.671,4418.5,4418.4,2.26326271]
[1759978556304,8.671,4418.5,4417.5,3.75260055]
[1759978556516,0.61245893,4419.0,4417.5,3.75260055]
[1759978556517,0.61245893,4419.0,4417.6,2.72690405]
[1759978556738,8.781,4418.9,4417.9,2.26351886]
[1759978557024,8.781,4418.9,4418.0,2.26344851]
[1759978557188,8.781,4418.9,4418.1,2.48985984]
[1759978557704,8.781,4418.9,4418.2,2.26334918]
[1759978557909,8.781,4418.9,4418.3,0.4406]
[1759978558107,8.781,4418.9,4418.8,2.26305784]
[1759978558818,8.781,4418.9,4418.6,2.26312713]
[1759978559029,0.099,4418.8,4418.1,0.22644485]
[1759978559196,6.424,4418.7,4417.8,2.26456595]
[1759978559381,6.424,4418.7,4418.0,2.26345978]
[1759978559582,6.424,4418.7,4417.9,2.26351478]
[1759978559788,6.424,4418.7,4418.0,2.26343803]
[1759978560031,6.424,4418.7,4418.1,2.26337544]
[1759978560185,6.424,4418.7,4417.8,2.26453139]
[1759978560186,6.424,4418.7,4417.9,2.2634714]
[1759978560527,2.26351358,4418.0,4417.8,0.001]
[1759978560819,8.778,4417.9,4417.8,0.001]
[1759978561017,8.877,4417.9,4417.8,0.001]
[1759978562417,8.778,4417.9,4417.8,0.001]
[1759978565928,8.778,4417.9,4417.8,2.2645701]
[1759978566132,8.778,4417.9,4417.8,0.001]
[1759978566696,8.778,4417.9,4417.8,2.2645701]
[1759978566902,8.778,4417.9,4417.8,0.001]
[1759978567098,8.877,4417.9,4417.8,0.001]
[1759978568813,8.778,4417.9,4417.8,0.001]
[1759978569237,8.778,4417.9,4417.8,2.86629678]
[1759978569440,6.423,4417.9,4417.8,2.86629678]
[1759978569602,6.423,4417.9,4417.8,3.30689678]
[1759978571326,6.423,4417.9,4417.8,2.86629678]
[1759978571939,2.355,4418.5,4418.4,2.26326271]
[1759978572141,7.14,4419.2,4418.4,0.66692627]
[1759978572142,2.355,4419.2,4418.4,0.66692627]
[1759978572343,2.355,4419.2,4419.0,2.26295541]
[1759978572344,6.422,4419.1,4419.0,2.26295541]
[1759978572542,6.422,4419.1,4419.0,2.70355541]
[1759978572851,6.422,4419.1,4419.0,8.2098744]
[1759978573060,9.425,4419.6,4419.4,2.26275059]
[1759978573061,0.002,4419.6,4419.4,2.26275059]
[1759978573261,0.002,4419.6,4419.4,7.74644003]
[1759978573467,0.002,4419.6,4419.4,2.70335059]
[1759978573663,1.875,4419.6,4419.4,2.70335059]
[1759978573823,1.875,4419.6,4419.4,2.72597809]
[1759978574237,0.002,4419.6,4419.4,2.70335059]
[1759978574439,0.002,4419.6,4419.4,3.22259557]
[1759978575447,0.002,4419.6,4419.4,3.19996807]
[1759978575638,0.002,4419.6,4419.4,2.70335059]
[1759978576367,0.002,4419.6,4419.4,2.72597809]
[1759978577025,0.002,4419.6,4419.4,2.83877809]
[1759978577678,0.002,4419.6,4419.4,9.89337809]
[1759978577883,0.002,4420.1,4420.0,2.89604343]
[1759978578165,0.002,4420.1,4420.0,9.94569943]
[1759978578326,0.002,4420.1,4420.0,12.30629943]
[1759978578770,1e-08,4420.4,4420.3,2.26228988]
[1759978579013,1e-08,4420.4,4420.3,4.29508988]
[1759978579219,1e-08,4420.4,4420.3,5.39191277]
[1759978579507,1e-08,4420.4,4420.3,7.62106033]
[1759978580065,1e-08,4420.4,4420.3,11.78928988]
[1759978580265,1e-08,4420.4,4420.3,2.37508988]
[1759978580466,1e-08,4420.4,4420.3,2.81568988]
[1759978580669,1e-08,4420.4,4419.9,0.2231]
[1759978580902,1e-08,4420.4,4420.0,0.1128]
[1759978581276,1e-08,4420.4,4419.7,0.4406]
[1759978581513,1e-08,4420.4,4419.7,0.55404395]
[1759978581824,2.47100001,4420.4,4419.7,2.26259549]
[1759978582108,2.47100001,4420.4,4419.8,0.02262545]
[1759978582405,2.47100001,4420.4,4419.1,0.4406]
[1759978582746,2.47100001,4420.4,4419.8,2.26251297]
[1759978583225,2.47100001,4420.4,4419.8,0.4406]
[1759978584113,2.47100001,4420.4,4419.1,0.4421]
[1759978584424,2.47100001,4420.4,4419.2,2.26285298]
[1759978584622,2.47100001,4420.4,4419.5,2.26267918]
[1759978584792,2.47100001,4420.4,4419.6,2.28522653]
[1759978585179,2.47100001,4420.4,4419.3,0.2704953]
[1759978585416,2.47100001,4420.4,4419.4,2.26273247]
[1759978585624,2.47100001,4420.4,4419.5,0.4421]
[1759978585808,4.73325364,4420.4,4419.5,0.4421]
[1759978586007,2.26229319,4420.3,4419.2,2.26284478]
[1759978586321,2.26229319,4420.3,4419.0,2.70503579]
[1759978586536,2.47100001,4420.4,4419.1,0.27050358]
[1759978586742,4.39100001,4420.4,4419.1,0.27050358]
[1759978586912,0.0999,4420.3,4418.4,0.22632627]
[1759978587105,0.0999,4420.2,4418.5,2.26320487]
[1759978587347,1.92,4419.8,4418.3,0.4421]
[1759978587650,2.26275192,4419.4,4418.3,0.4421]
[1759978587817,6.53665397,4419.6,4418.3,2.70537604]
[1759978588155,6.53665397,4419.6,4418.1,0.2331]
[1759978588156,0.2649,4419.5,4418.1,0.01]
[1759978588457,2.26295605,4419.0,4418.1,0.01]
[1759978588664,4.115,4418.9,4418.1,0.01]
[1759978589549,6.3780219,4418.9,4418.1,0.01]
[1759978589721,4.115,4418.9,4418.1,0.01]
[1759978589922,4.115,4418.9,4418.2,0.22734645]
[1759978590640,4.115,4418.9,4418.3,0.02263313]
[1759978591227,0.1128,4418.8,4418.3,0.02263313]
[1759978591448,0.2632,4420.1,4418.4,0.677]
[1759978591619,0.1128,4419.2,4418.4,0.7898]
[1759978591950,1.92,4419.4,4418.1,0.01]
[1759978591951,2.65153437,4419.3,4418.1,0.01]
[1759978592145,0.1128,4418.8,4418.1,0.1228]
[1759978592445,0.1128,4418.8,4418.1,2.38620489]
[1759978592651,0.1128,4418.8,4418.2,0.23862049]
[1759978593222,0.1128,4419.1,4418.3,0.37033313]
[1759978593422,0.1128,4419.1,4418.4,2.70536271]
[1759978593728,0.1128,4419.1,4418.7,2.2630796]
[1759978593928,0.1128,4419.1,4418.6,2.26315855]
[1759978594326,0.1128,4419.1,4418.7,0.4421]
[1759978594755,0.1128,4419.1,4418.3,0.3477]
[1759978594944,0.1128,4419.1,4418.5,2.26319976]
[1759978595116,0.1128,4419.1,4418.7,2.26310905]
[1759978595323,0.1128,4419.1,4418.6,0.4421]
[1759978595645,0.1128,4419.1,4418.7,0.4421]
[1759978596036,0.1128,4419.1,4418.8,0.4421]
[1759978596419,0.1128,4419.1,4418.3,0.1128]
[1759978596922,2.26281856,4419.3,4418.1,0.01]
[1759978597123,0.1128,4418.8,4418.2,0.02263365]
[1759978597726,0.1128,4418.8,4418.1,2.50830075]
[1759978597926,0.1128,4418.8,4418.2,0.30632008]
[1759978598333,0.1128,4418.8,4418.1,0.01]
[1759978599033,0.2125,4418.8,4418.1,0.01]
[1759978599233,0.1128,4418.2,4418.1,0.01]
[1759978599456,6.65016517,4418.2,4418.1,0.01]
[1759978599624,13.05606517,4418.2,4418.1,0.01]
[1759978600361,14.16554558,4418.2,4418.1,0.01]
[1759978601355,14.16554558,4418.2,4418.1,1e-08]
[1759978605971,8.670408,4417.4,4416.1,1e-08]
[1759978606184,0.6336,4417.5,4413.1,1e-08]
[1759978606185,0.6336,4415.2,4413.1,1e-08]
[1759978606352,0.6336,4415.2,4411.3,0.14146568]
[1759978606353,2.26598082,4413.1,4411.3,0.14146568]
[1759978606562,0.6336,4412.9,4411.7,0.50845455]
[1759978606882,4.275,4412.7,4411.7,0.50845455]
[1759978607182,9.5929,4413.2,4411.7,0.50845455]
[1759978607183,0.47141572,4412.6,4411.7,0.50845455]
[1759978607384,0.1709,4413.2,4411.7,0.50845455]
[1759978607600,1.92,4412.6,4411.7,0.50845455]
[1759978607815,0.355,4412.5,4411.7,0.50845455]
[1759978608095,0.6336,4412.2,4411.7,0.50845455]
[1759978608247,0.099,4412.4,4411.7,0.50845455]
[1759978608448,0.6336,4412.2,4411.7,0.50845455]
[1759978608671,0.6336,4412.0,4411.7,0.50845455]
[1759978608873,0.099,4411.9,4411.7,0.50845455]
[1759978609108,0.11814255,4414.3,4411.7,0.50845455]
[1759978609109,10.698,4411.8,4411.7,0.50845455]
[1759978609383,2.019,4411.8,4411.7,0.50845455]
[1759978609870,19.06624853,4411.8,4411.7,0.50845455]
[1759978610268,2.6526,4411.8,4411.7,0.50845455]
[1759978610447,20.8566,4411.8,4411.7,0.50845455]
[1759978610647,23.12324853,4411.8,4411.7,0.50845455]
[1759978611081,20.8586,4411.8,4411.7,0.50845455]
[1759978611287,267.38137612,4404.0,4403.9,0.505404]
[1759978611489,98.59669601,4404.0,4403.9,16.78040873]
[1759978611690,98.59669601,4404.0,4403.9,31.06260051]
[1759978611691,96.1988609,4404.0,4403.9,31.06260051]
[1759978612000,87.0783083,4404.0,4403.9,40.15149374]
[1759978612144,6.424,4408.6,4403.9,37.88077915]
[1759978612345,1.92,4408.5,4407.2,13.53379014]
[1759978612585,6.424,4408.6,4406.9,13.53379014]
[1759978612771,6.424,4408.6,4406.4,8.781]
[1759978612772,5.312,4408.5,4407.5,13.53379014]
[1759978613004,1.087,4409.5,4407.3,2.26895896]
[1759978613184,0.6336,4409.3,4404.7,2.27027997]
[1759978613383,0.2292,4409.6,4407.4,13.53379014]
[1759978613384,0.4534,4409.2,4407.4,13.53379014]
[1759978613584,8.782,4409.1,4407.5,1.19363138]
[1759978613786,8.782,4409.1,4407.0,2.26911731]
[1759978613986,8.782,4409.1,4407.1,13.53379014]
[1759978614223,0.01,4407.9,4405.9,0.44518196]
[1759978614388,0.01,4407.9,4406.6,13.53379014]
[1759978614714,0.01,4407.9,4406.7,0.01135083]
[1759978614914,0.055,4407.9,4406.1,2.26957075]
[1759978615212,0.055,4407.9,4406.3,1.92]
[1759978615213,0.02835881,4407.8,4406.3,1.92]
[1759978615412,0.01,4407.9,4407.2,2.26900736]
[1759978615612,0.01,4407.9,4407.3,0.0113462]
[1759978615810,0.01,4407.9,4407.3,2.28029567]
[1759978616021,0.01,4407.9,4407.5,2.26881561]
[1759978616221,0.01,4407.9,4407.6,0.46625501]
[1759978616708,0.01,4407.9,4407.7,0.01134311]
[1759978617432,0.01,4407.9,4406.7,13.53379014]
[1759978617579,0.01,4407.9,4406.7,15.80306145]
[1759978617982,0.01,4407.9,4406.7,13.53379014]
[1759978618192,0.01,4407.9,4406.8,1.36472907]
[1759978618193,5.21750242,4407.8,4406.8,1.36472907]
[1759978618396,5.21750242,4407.8,4406.8,1.35337901]
[1759978618891,5.21750242,4407.8,4406.2,14.18854722]
[1759978618892,0.02835946,4407.7,4406.2,14.18854722]
[1759978619105,5.21750242,4407.8,4406.3,0.01135495]
[1759978619404,5.21750242,4407.8,4407.3,2.26891811]
[1759978619718,5.21750242,4407.8,4407.4,0.01134594]
[1759978619884,5.21750242,4407.8,4407.7,0.1128]
[1759978620077,5.21750242,4407.8,4407.1,13.53379014]
[1759978620078,5.21750242,4407.8,4407.3,6.447]
[1759978620280,5.21750242,4407.8,4407.7,15.91534708]
[1759978620716,5.21750242,4407.8,4399.3,0.22730889]
[1759978620717,5.21750242,4407.8,4407.1,13.53379014]
[1759978620918,0.1128,4407.7,4407.0,2.26907217]
[1759978621104,0.1128,4407.7,4407.1,0.23818722]
[1759978621424,0.1128,4407.7,4407.4,13.53379014]
[1759978621624,0.1128,4407.7,4407.6,2.26880842]
[1759978621793,5.21750242,4407.8,4407.5,2.26885989]
[1759978621980,5.21750242,4407.8,4407.4,13.53379014]
[1759978622183,5.21750242,4407.8,4407.7,2.26875694]
[1759978623098,5.21750242,4407.8,4407.5,1.35337901]
[1759978623301,5.21750242,4407.8,4407.6,13.53379014]
[1759978623525,5.21750242,4407.8,4406.2,0.65475708]
[1759978623526,5.21750242,4407.8,4407.7,0.01134363]
[1759978623696,5.21750242,4407.8,4407.6,13.53379014]
[1759978623890,5.21750242,4407.8,4407.7,2.28010057]
[1759978624106,5.21750242,4407.8,4407.7,0.01134363]
[1759978624322,5.21750242,4407.8,4407.7,3.62327032]
[1759978624491,5.21750242,4407.8,4407.7,10.08061343]
[1759978624693,5.21750242,4407.8,4407.7,10.06927032]
[1759978625295,0.01,4408.9,4407.7,7.80051338]
[1759978625593,0.01,4408.9,4408.8,2.26819089]
[1759978625815,0.01,4408.9,4408.8,8.72551985]
[1759978626132,0.01,4408.9,4408.8,8.71419089]
[1759978626721,0.002,4409.0,4408.9,4.18813944]
[1759978627215,0.002,4409.0,4408.9,13.00746711]
[1759978627415,0.002,4409.0,4408.9,13.65089652]
[1759978627729,0.60473629,4411.4,4409.8,2.26767653]
[1759978627929,0.60473629,4411.4,4409.8,22.25046667]
[1759978628445,0.4335,4411.3,4409.8,15.80146667]
[1759978628633,0.02833696,4411.2,4409.2,15.80176261]
[1759978628819,0.4435,4410.9,4409.5,2.26778193]
[1759978629022,0.4435,4410.9,4409.6,0.01131816]
[1759978629023,0.01,4410.9,4409.6,0.01131816]
[1759978629331,0.01,4410.9,4409.3,6.449]
[1759978629332,0.01,4410.9,4409.8,15.80146667]
[1759978630441,0.01,4410.9,4409.8,8.71667653]
[1759978631739,0.01,4410.9,4409.8,8.82947653]
[1759978631740,0.1228,4410.9,4409.8,8.82947653]
[1759978631940,0.1228,4410.9,4409.8,9.94121823]
[1759978634914,0.1228,4410.9,4409.8,3.49221823]
[1759978635115,0.1228,4410.9,4409.8,2.39179263]
[1759978635343,0.1228,4410.9,4409.8,8.83779263]
[1759978635643,0.1228,4410.9,4409.8,8.82647653]
[1759978636148,0.01,4410.9,4409.8,8.82647653]
[1759978636936,0.01,4410.9,4410.8,2.26716241]
[1759978637115,0.01,4410.9,4410.8,8.13646566]
[1759978637315,0.01,4410.9,4410.8,9.16553234]
[1759978637764,0.01,4410.9,4410.8,3.30753234]
[1759978637971,0.01,4410.9,4409.3,2.26793368]
[1759978638262,0.01,4410.9,4410.8,2.26716241]
[1759978638573,0.01,4410.9,4410.8,5.12716241]
[1759978638574,1e-08,4410.9,4410.8,5.12716241]
[1759978638858,0.01,4411.9,4411.8,2.26664853]
[1759978639046,0.01,4411.9,4411.8,8.71564853]
[1759978639227,0.01,4411.9,4411.8,10.04978545]
[1759978639968,0.01,4411.9,4411.3,2.26685476]
[1759978639969,0.01,4411.9,4409.7,0.6336]